bitfinex-derivatives/quotes_SOLF0:USTF0_20241024
["timestamp","ask_amount","ask_price","bid_price","bid_amount"]
[1729811236108,7.76400154,178.18,178.17,151.47887]
[1729811236809,10.57140154,178.18,178.17,151.47887]
[1729811237013,60.6,178.35,178.17,151.47887]
[1729811237210,7.76400154,178.25,178.19,7.76400154]
[1729811237513,7.76400154,178.26,178.21,7.76400154]
[1729811238309,4.16,178.3,178.24,7.76400154]
[1729811238310,11.92400154,178.3,178.24,7.76400154]
[1729811238701,2.8062,178.26,178.24,7.76400154]
[1729811239807,2.8063,178.25,178.23,7.76400154]
[1729811240307,2.8063,178.25,178.21,2.8069]
[1729811243017,4.16,178.3,178.2,16.28309723]
[1729811243316,4.16,178.3,178.22,2.8067]
[1729811244118,2.8059,178.28,178.22,2.8067]
[1729811244321,4.16,178.3,178.22,2.8067]
[1729811246109,2.8062,178.26,178.22,2.8067]
[1729811247615,2.8063,178.25,178.21,2.8068]
[1729811248018,4.16,178.3,178.2,16.28309723]
[1729811248218,2.8066,178.24,178.2,19.09009723]
[1729811248615,12.12309723,178.29,178.18,13.29289723]
[1729811248811,12.12309723,178.29,178.16,12.12309723]
[1729811248812,12.12309723,178.27,178.16,12.12309723]
[1729811249112,12.12309723,178.24,178.17,4.16]
[1729811249317,2.8071,178.2,178.17,4.16]
[1729811249913,12.12309723,178.24,178.17,4.16]
[1729811250111,2.8073,178.19,178.17,4.16]
[1729811250312,12.12309723,178.24,178.15,2.4882]
[1729811250509,4.16,178.26,178.15,9.456]
[1729811250510,12.12309723,178.22,178.15,9.456]
[1729811250715,12.12309723,178.22,178.14,4.16]
[1729811250923,12.12309723,178.2,178.14,4.16]
[1729811251518,2.8075,178.18,178.14,2.808]
[1729811252011,12.12309723,178.2,178.14,2.808]
[1729811252621,12.12309723,178.2,178.13,143.81887]
[1729811253419,2.8074,178.18,178.13,143.81887]
[1729811253620,12.12309723,178.2,178.13,143.81887]
[1729811254223,2.8074,178.18,178.13,143.81887]
[1729811254423,12.12309723,178.2,178.13,143.81887]
[1729811255224,2.8077,178.16,178.13,143.81887]
[1729811256927,2.8077,178.16,178.13,146.62697]
[1729811261117,2.808,178.14,178.13,139.65887]
[1729811262326,10.57901554,178.14,178.13,139.65887]
[1729811263225,4.16,178.18,178.13,139.65887]
[1729811263420,7.77101554,178.17,178.13,139.65887]
[1729811263826,2.8078,178.16,178.13,139.65887]
[1729811279546,2.8072,178.2,178.16,2.8076]
[1729811279735,4.16,178.22,178.16,2.8076]
[1729811280440,4.16,178.24,178.16,2.8076]
[1729811280942,2.8072,178.2,178.16,2.8076]
[1729811281147,4.16,178.24,178.16,2.8076]
[1729811281949,13.3376113,178.25,178.16,2.8076]
[1729811282253,2.8073,178.19,178.16,2.8076]
[1729811282852,4.16,178.24,178.16,2.8076]
[1729811283050,2.8072,178.19,178.16,2.8076]
[1729811283648,2.8072,178.19,178.15,5.1926]
[1729811283846,2.8074,178.18,178.15,5.1926]
[1729811284756,4.16,178.24,178.15,5.1926]
[1729811284956,12.1381113,178.23,178.16,2.8076]
[1729811285152,12.1381113,178.23,178.15,2.3848]
[1729811285559,12.1381113,178.23,178.17,2.8075]
[1729811285955,2.8069,178.21,178.13,139.65887]
[1729811286159,12.1381113,178.18,178.13,139.65887]
[1729811286355,7.77116897,178.14,178.13,139.65887]
[1729811287564,10.57916897,178.14,178.13,139.65887]
[1729811293073,2.808,178.14,178.13,139.65887]
[1729811293273,7.77116897,178.15,178.13,139.65887]
[1729811293573,10.57906897,178.15,178.13,139.65887]
[1729811294486,2.8079,178.15,178.13,139.65887]
[1729811295790,7.77116897,178.17,178.13,139.65887]
[1729811295994,4.16,178.2,178.13,139.65887]
[1729811295995,2.808,178.14,178.13,139.65887]
[1729811296389,10.57916897,178.14,178.13,139.65887]
[1729811301472,7.77116897,178.14,178.13,139.65887]
[1729811301675,7.77116897,178.16,178.13,139.65887]
[1729811302273,2.8079,178.15,178.13,139.65887]
[1729811302474,1.1995,178.25,178.14,7.77116897]
[1729811302678,1.1995,178.25,178.15,7.77116897]
[1729811302679,4.16,178.24,178.15,7.77116897]
[1729811302875,7.77116897,178.2,178.15,7.77116897]
[1729811303076,2.8073,178.19,178.15,10.57886897]
[1729811303387,7.77116897,178.2,178.15,10.57886897]
[1729811303682,7.77116897,178.2,178.15,7.77116897]
[1729811303885,2.8074,178.18,178.15,7.77116897]
[1729811307483,4.16,178.26,178.17,7.77116897]
[1729811307689,4.16,178.26,178.2,7.77116897]
[1729811307690,7.77116897,178.25,178.2,7.77116897]
[1729811307879,7.77116897,178.24,178.2,7.77116897]
[1729811308079,7.77116897,178.24,178.18,9.03256897]
[1729811309190,4.16,178.27,178.2,7.77116897]
[1729811309374,7.77116897,178.26,178.21,7.77116897]
[1729811309776,2.8064,178.25,178.21,7.77116897]
[1729811309983,7.77116897,178.26,178.21,7.77116897]
[1729811310778,7.77116897,178.25,178.2,7.77116897]
[1729811311385,2.8064,178.24,178.2,10.57816897]
[1729811314082,7.77116897,178.25,178.2,7.77116897]
[1729811314287,2.8066,178.23,178.2,7.77116897]
[1729811314584,7.77116897,178.25,178.16,1.236]
[1729811314585,7.77116897,178.21,178.16,1.236]
[1729811314793,10.57856897,178.18,178.16,1.236]
[1729811314976,10.57856897,178.18,178.15,6.9477]
[1729811316990,2.8076,178.17,178.15,4.14]
[1729811321497,10.57876897,178.17,178.15,4.14]
[1729811322398,7.77116897,178.17,178.15,4.14]
[1729811323295,10.57866897,178.17,178.15,4.14]
[1729811331204,2.8077,178.16,178.15,4.14]
[1729811331590,7.77116897,178.17,178.15,4.14]
[1729811332700,2.8077,178.16,178.15,4.14]
[1729811335005,7.77116897,178.16,178.13,139.65887]
[1729811335205,4.14,178.23,178.13,139.65887]
[1729811335206,2.808,178.14,178.13,139.65887]
[1729811342311,10.57916897,178.14,178.13,139.65887]
[1729811345722,2.808,178.14,178.13,139.65887]
[1729811345923,10.57916897,178.14,178.13,139.65887]
[1729811346429,7.77116897,178.14,178.13,139.65887]
[1729811346717,2.8078,178.16,178.13,147.43003897]
[1729811347321,2.8079,178.15,178.13,139.65887]
[1729811347720,10.57906897,178.15,178.13,139.65887]
[1729811347922,7.77116897,178.15,178.13,139.65887]
[1729811348215,2.808,178.14,178.13,139.65887]
[1729811349526,10.57916897,178.14,178.13,139.65887]
[1729811350614,10.57916897,178.14,178.13,83.98887]
[1729811353128,10.57916897,178.14,178.13,82.07477]
[1729811353329,10.57916897,178.14,178.13,26.40477]
[1729811353524,11.74586897,178.14,178.13,14.58477]
[1729811353724,11.74586897,178.14,178.13,0.65487]
[1729811354528,8.93786897,178.14,177.97,2.25795]
[1729811354727,10.58126897,178.01,177.97,1.2586]
[1729811354929,7.77116897,177.99,177.97,1.2586]
[1729811355128,7.77116897,178.01,177.97,1.2586]
[1729811355528,7.77116897,178.0,177.97,4.0691]
[1729811356223,7.77116897,178.0,177.97,1.2586]
[1729811356424,7.77116897,178.0,177.96,2.8108]
[1729811356622,7.77116897,177.99,177.94,23.61762144]
[1729811356828,7.77116897,177.99,177.94,15.84645247]
[1729811358332,7.77116897,177.95,177.94,14.62165247]
[1729811359135,10.58216897,177.95,177.94,14.62165247]
[1729811360227,14.72176897,177.98,177.94,14.62165247]
[1729811360429,14.72176897,177.98,177.93,10.58236897]
[1729811360635,11.91116897,177.98,177.93,10.58236897]
[1729811360824,11.91116897,177.98,177.89,4.76619]
[1729811360825,10.58186897,177.97,177.92,10.58256897]
[1729811362734,5.6178,178.09,177.93,7.77116897]
[1729811362735,11.91116897,177.99,177.93,7.77116897]
[1729811362935,7.77116897,177.99,177.93,7.77116897]
[1729811363240,10.58166897,177.99,177.94,2.8111]
[1729811365031,2.8105,177.98,177.94,2.8111]
[1729811367034,7.77116897,177.96,177.91,1.09959]
[1729811367240,4.14,178.0,177.91,2.8116]
[1729811367241,10.58216897,177.95,177.91,2.8116]
[1729811367438,7.77116897,177.94,177.91,2.8116]
[1729811369039,7.77116897,177.94,177.89,3.6666]
[1729811369238,7.77116897,177.91,177.89,3.6666]
[1729811369439,7.77116897,177.92,177.89,3.6666]
[1729811369840,7.77116897,177.92,177.89,6.4785]
[1729811370241,4.14,177.96,177.89,3.6666]
[1729811370445,7.77116897,177.92,177.89,3.6666]
[1729811370746,7.77116897,177.92,177.9,2.8116]
[1729811371768,5.6189,178.05,177.89,11.43776897]
[1729811371973,7.77116897,177.96,177.92,2.8115]
[1729811372567,10.58206897,177.96,177.92,2.8115]
[1729811372965,7.77116897,177.93,177.89,2.25242]
[1729811373264,5.6189,178.05,177.83,5.28425]
[1729811373265,7.77116897,177.9,177.83,5.28425]
[1729811373451,7.77116897,177.9,177.85,7.77116897]
[1729811373853,7.77116897,177.91,177.86,7.77116897]
[1729811374066,4.14,177.94,177.91,2.8115]
[1729811374361,7.77116897,177.92,177.87,1.1551]
[1729811374749,7.77116897,177.92,177.89,2.8119]
[1729811375359,10.58266897,177.92,177.89,2.8119]
[1729811376239,10.58266897,177.92,177.88,2.8121]
[1729811376240,7.77116897,177.9,177.88,2.8121]
[1729811376444,10.58266897,177.92,177.87,2.396]
[1729811377243,10.58266897,177.92,177.89,2.8119]
[1729811381046,2.8115,177.92,177.89,2.8119]
[1729811381251,10.58266897,177.92,177.89,2.8119]
[1729811382950,7.77116897,177.92,177.89,2.8119]
[1729811385244,2.8115,177.93,177.89,2.8119]
[1729811385440,7.77116897,177.92,177.89,2.8119]
[1729811387046,10.58266897,177.92,177.89,2.8119]
[1729811387556,7.77116897,177.9,177.89,2.8119]
[1729811389648,7.77116897,177.91,177.89,2.8119]
[1729811391753,2.8121,177.89,177.84,5.3327]
[1729811392155,7.77116897,177.88,177.84,5.3327]
[1729811393055,7.77116897,177.88,177.84,1.1927]
[1729811393356,7.77116897,177.88,177.85,2.8125]
[1729811393945,7.77116897,177.87,177.85,2.8125]
[1729811394152,7.77116897,177.86,177.8,1.1644]
[1729811394346,7.77116897,177.85,177.82,2.813]
[1729811395057,2.8128,177.84,177.8,6.9532]
[1729811395457,7.77116897,177.85,177.8,4.14]
[1729811395659,10.58376897,177.85,177.81,2.8131]
[1729811396261,4.14,177.92,177.82,7.77116897]
[1729811396458,4.14,177.91,177.83,7.77116897]
[1729811396657,7.77116897,177.89,177.83,7.77116897]
[1729811397163,2.8121,177.89,177.85,2.8124]
[1729811397362,4.14,177.92,177.85,7.77116897]
[1729811397561,7.77116897,177.9,177.85,7.77116897]
[1729811398253,2.8119,177.89,177.86,2.8124]
[1729811399364,10.58296897,177.9,177.85,7.77116897]
[1729811399958,10.58296897,177.9,177.86,2.8123]
[1729811400860,7.77116897,177.9,177.86,2.8123]
[1729811401164,2.812,177.89,177.86,2.8123]
[1729811401962,7.77116897,177.9,177.87,2.8122]
[1729811402160,7.77116897,177.9,177.85,7.77116897]
[1729811403062,2.8119,177.89,177.86,2.8124]
[1729811404862,10.58346897,177.87,177.84,2.8127]
[1729811405365,7.77116897,177.87,177.82,7.77116897]
[1729811405559,2.8125,177.86,177.83,2.8128]
[1729811407362,10.58366897,177.86,177.83,2.8128]
[1729811407863,2.8126,177.85,177.82,10.58406897]
[1729811408063,2.8126,177.85,177.82,2.8129]
[1729811413471,7.77116897,177.86,177.83,2.8129]
[1729811413871,2.8127,177.85,177.82,2.8129]
[1729811414071,4.14,177.92,177.82,7.77116897]
[1729811414273,7.77116897,177.91,177.86,7.77116897]
[1729811414471,10.58276897,177.92,177.89,2.8118]
[1729811414672,2.8116,177.92,177.89,10.58296897]
[1729811414875,7.77116897,177.93,177.89,7.77116897]
[1729811415177,7.77116897,177.93,177.9,2.8118]
[1729811415178,10.58256897,177.93,177.9,2.8118]
[1729811415474,10.58256897,177.93,177.89,7.77116897]
[1729811415679,10.58256897,177.93,177.89,10.58306897]
[1729811416865,2.8112,177.94,177.91,7.77116897]
[1729811418072,2.8107,177.98,177.94,2.811]
[1729811418273,2.8107,177.98,177.94,10.58216897]
[1729811418475,7.77116897,177.99,177.94,10.58216897]
[1729811419081,2.8107,177.97,177.94,10.58226897]
[1729811419679,7.77116897,177.99,177.94,7.77116897]
[1729811419880,5.36764364,178.08,177.92,4.14]
[1729811419881,5.36764364,178.08,177.95,7.77116897]
[1729811420077,7.77116897,177.97,177.93,2.3451]
[1729811420284,7.77116897,177.96,177.92,4.14]
[1729811421174,2.8111,177.95,177.92,4.14]
[1729811423685,7.77116897,177.96,177.92,4.14]
[1729811423985,2.811,177.95,177.92,6.9513]
[1729811429283,4.14,178.0,177.92,4.14]
[1729811429486,2.8105,177.99,177.97,7.77116897]
[1729811429788,7.77116897,178.02,177.98,7.77116897]
[1729811430392,2.8102,178.0,177.98,7.77116897]
[1729811430579,4.14,178.04,177.99,7.77116897]
[1729811430986,2.8099,178.02,177.99,10.58146897]
[1729811432187,4.14,178.07,178.01,7.77116897]
[1729811432386,12.21698582,178.09,178.03,7.77116897]
[1729811432588,12.21698582,178.09,177.97,2.3841]
[1729811432589,7.77116897,178.04,177.97,2.3841]
[1729811432886,7.77116897,178.02,177.99,4.14]
[1729811433186,7.77116897,178.0,177.97,4.14]
[1729811433388,7.77116897,177.99,177.94,7.77116897]
[1729811433593,7.77116897,177.99,177.94,11.91116897]
[1729811433788,2.8106,177.98,177.94,11.91116897]
[1729811433988,7.77116897,177.97,177.94,4.14]
[1729811434189,7.77116897,177.95,177.91,10.15526897]
[1729811434384,7.77116897,177.95,177.91,2.3841]
[1729811436294,12.15583497,177.97,177.91,2.3841]
[1729811437499,2.811,177.95,177.91,5.1957]
[1729811441399,12.15583497,177.97,177.92,2.8114]
[1729811441400,2.8109,177.96,177.92,2.8114]
[1729811441601,16.29583497,177.99,177.91,2.3841]
[1729811441896,12.15583497,177.99,177.91,2.3841]
[1729811443297,2.8107,177.97,177.94,2.8111]
[1729811443487,2.8107,177.97,177.91,2.3841]
[1729811443999,14.96633497,177.99,177.95,2.811]
[1729811444198,4.14,178.0,177.95,2.811]
[1729811444399,5.40880847,178.08,177.93,4.14]
[1729811444601,2.8103,178.0,177.94,12.15583497]
[1729811444987,12.15583497,178.04,177.94,12.15583497]
[1729811445187,2.8101,178.01,177.94,12.15583497]
[1729811445401,16.29583497,178.06,177.96,12.15583497]
[1729811445593,2.8101,178.01,177.98,2.8105]
[1729811445792,12.15583497,178.02,177.93,1.09965]
[1729811446093,12.15583497,178.02,177.94,4.14]
[1729811446300,2.8106,177.98,177.95,2.8109]
[1729811446498,12.15583497,178.02,177.94,4.14]
[1729811446696,2.8109,177.96,177.92,4.14]
[1729811447603,2.8109,177.96,177.93,2.8112]
[1729811447797,12.15583497,178.0,177.92,4.14]
[1729811448205,12.15583497,178.0,177.92,6.9513]
[1729811448604,2.811,177.96,177.92,6.9513]
[1729811448806,2.811,177.96,177.92,4.14]
[1729811449107,2.811,177.96,177.93,2.8113]
[1729811449608,2.8114,177.93,177.91,2.3841]
[1729811449797,2.8114,177.93,177.89,2.8118]
[1729811450600,2.8114,177.93,177.9,2.8118]
[1729811453497,4.14,177.98,177.87,4.14]
[1729811453498,2.811,177.95,177.92,2.8114]
[1729811456809,4.14,177.98,177.88,13.25561497]
[1729811457009,2.8112,177.94,177.91,2.8116]
[1729811457519,12.15583497,177.95,177.87,4.14]
[1729811458009,2.8115,177.92,177.89,2.8118]
[1729811458600,2.8114,177.93,177.9,2.8118]
[1729811468212,2.8114,177.93,177.9,10.59249473]
[1729811473116,7.78069473,177.93,177.87,1.09959]
[1729811473309,4.14,177.98,177.86,11.92069473]
[1729811473513,7.78069473,177.93,177.86,11.92069473]
[1729811473816,4.14,177.98,177.88,2.812]
[1729811474017,7.78069473,177.93,177.88,2.812]
[1729811475214,2.8117,177.91,177.88,2.812]
[1729811475808,7.78069473,177.93,177.86,4.14]
[1729811476019,7.78069473,177.93,177.86,11.92069473]
[1729811476224,7.78069473,177.91,177.86,11.92069473]
[1729811476516,10.59239473,177.91,177.87,2.8122]
[1729811476709,10.59239473,177.91,177.86,11.92069473]
[1729811477112,2.85949072,177.99,177.85,2.8125]
[1729811477113,2.8121,177.88,177.85,2.8125]
[1729811481217,7.78069473,177.88,177.84,2.4095]
[1729811481416,4.14,177.93,177.82,4.14]
[1729811481617,7.78069473,177.86,177.81,11.92069473]
[1729811481919,2.8127,177.85,177.82,2.813]
[1729811482722,2.8128,177.84,177.8,2.8132]
[1729811482916,7.78069473,177.82,177.79,1.1566]
[1729811483314,7.78069473,177.82,177.77,4.14]
[1729811483517,7.78069473,177.82,177.76,7.78069473]
[1729811483714,4.14,177.85,177.76,7.78069473]
[1729811483915,2.8135,177.8,177.76,2.8139]
[1729811484114,7.78069473,177.81,177.75,13.13189473]
[1729811484722,2.8135,177.79,177.75,11.80599473]
[1729811485421,2.8135,177.79,177.76,2.814]
[1729811486335,7.78069473,177.81,177.75,8.99189473]
[1729811486531,7.78069473,177.81,177.75,11.80599473]
[1729811487026,4.14,177.85,177.73,1.2157]
[1729811487027,5.6248,177.87,177.73,1.2157]
[1729811487228,7.78069473,177.78,177.73,8.99639473]
[1729811487435,7.78069473,177.78,177.73,1.2157]
[1729811487621,2.8141,177.76,177.73,1.2157]
[1729811488531,7.78069473,177.75,177.71,7.78069473]
[1729811489036,7.78069473,177.75,177.71,10.59549473]
[1729811489233,10.59499473,177.75,177.7,1.2647]
[1729811489433,10.59499473,177.75,177.71,7.78069473]
[1729811489638,7.78069473,177.75,177.71,7.78069473]
[1729811490137,11.92069473,177.79,177.73,10.59509473]
[1729811490332,2.814,177.77,177.73,10.59509473]
[1729811490540,11.92069473,177.79,177.73,10.59509473]
[1729811491228,2.8138,177.78,177.73,10.59509473]
[1729811491450,11.92069473,177.79,177.73,10.59509473]
[1729811492047,2.8141,177.76,177.73,10.59509473]
[1729811493645,2.8141,177.76,177.73,2.8144]
[1729811493849,2.8141,177.76,177.74,7.78069473]
[1729811494548,2.8141,177.76,177.74,7.53069473]
[1729811495350,5.6248,177.87,177.75,7.78069473]
[1729811495351,2.8137,177.78,177.75,7.78069473]
[1729811495745,11.92069473,177.82,177.72,4.14]
[1729811496049,11.92069473,177.82,177.77,7.78069473]
[1729811496257,4.14,177.84,177.8,7.78069473]
[1729811496451,11.92069473,177.85,177.8,7.78069473]
[1729811496647,2.8132,177.82,177.8,7.78069473]
[1729811496847,7.78069473,177.83,177.78,7.78069473]
[1729811497846,2.8132,177.81,177.78,7.78069473]
[1729811500055,2.8132,177.81,177.77,10.59439473]
[1729811500249,7.78069473,177.82,177.77,10.59439473]
[1729811500452,7.78069473,177.79,177.75,10.59479473]
[1729811501254,10.59439473,177.79,177.75,10.59479473]
[1729811501460,7.78069473,177.78,177.73,8.184]
[1729811501756,2.8144,177.74,177.7,9.04539473]
[1729811501958,2.8144,177.74,177.71,2.8147]
[1729811510658,4.14,177.8,177.73,7.78069473]
[1729811510860,4.14,177.8,177.76,7.78069473]
[1729811511662,4.14,177.8,177.77,7.78069473]
[1729811511862,2.8136,177.79,177.77,7.78069473]
[1729811512270,11.92069473,177.83,177.74,1.2045]
[1729811512461,11.92069473,177.83,177.78,7.78069473]
[1729811513369,2.8134,177.8,177.78,7.78069473]
[1729811513961,11.92069473,177.83,177.75,1.2458]
[1729811513962,7.78069473,177.81,177.75,1.2458]
[1729811514166,7.78069473,177.81,177.74,1.2045]
[1729811514167,7.78069473,177.78,177.74,5.3445]
[1729811514469,7.78069473,177.78,177.74,1.2045]
[1729811514766,2.814,177.77,177.74,1.2045]
[1729811516266,2.814,177.77,177.74,4.0188]
[1729811518465,12.16466746,177.81,177.74,4.0188]
[1729811518663,2.8139,177.77,177.74,4.0188]
[1729811520173,4.14,177.83,177.74,1.2045]
[1729811520468,2.8138,177.78,177.75,2.8141]
[1729811520677,5.6244,177.88,177.74,1.2045]
[1729811520972,12.16466746,177.85,177.77,2.8137]
[1729811521368,2.8133,177.81,177.77,2.8137]
[1729811521567,12.16466746,177.85,177.77,2.8137]
[1729811523279,2.8135,177.8,177.77,2.8137]
[1729811525965,4.14,177.83,177.74,1.2045]
[1729811526167,12.16466746,177.82,177.75,2.814]
[1729811526972,2.8137,177.78,177.75,2.814]
[1729811527373,12.16466746,177.82,177.74,5.3445]
[1729811528580,2.8136,177.79,177.76,2.814]
[1729811537276,2.8133,177.81,177.78,2.8137]
[1729811537477,4.14,177.83,177.77,12.16466746]
[1729811537687,4.14,177.85,177.77,12.16466746]
[1729811538388,2.8133,177.81,177.78,7.78052136]
[1729811552295,14.7053738,177.91,177.8,7.78052136]
[1729811552496,12.103532,177.91,177.88,7.78052136]
[1729811552896,2.8119,177.9,177.88,7.78052136]
[1729811553095,12.103532,177.91,177.88,7.78052136]
[1729811553300,4.14,177.93,177.88,7.78052136]
[1729811553595,2.8119,177.89,177.88,7.78052136]
[1729811555596,60.76,178.02,177.88,7.78052136]
[1729811555799,4.14,178.0,177.93,7.78052136]
[1729811555994,4.14,178.0,177.95,7.78052136]
[1729811556195,11.92052136,178.0,177.95,7.78052136]
[1729811556397,7.78052136,177.97,177.91,4.14]
[1729811556697,10.59162136,177.95,177.9,13.09432136]
[1729811556902,7.78052136,177.97,177.91,7.78052136]
[1729811557104,2.8106,177.98,177.93,10.59172136]
[1729811557303,7.78052136,177.99,177.95,7.78052136]
[1729811558305,7.78052136,177.96,177.92,10.59192136]
[1729811558905,7.78052136,177.94,177.86,2.8123]
[1729811559100,7.78052136,177.91,177.85,10.20122136]
[1729811559901,4.14,177.95,177.85,10.20122136]
[1729811559902,10.59252136,177.89,177.85,10.20122136]
[1729811560205,10.59252136,177.89,177.85,5.2332]
[1729811560794,2.8121,177.88,177.85,2.4207]
[1729811561006,7.78052136,177.87,177.85,2.4207]
[1729811561398,10.59262136,177.88,177.85,2.4207]
[1729811563795,7.78052136,177.87,177.85,2.4207]
[1729811566208,2.8121,177.88,177.85,2.4207]
[1729811566410,10.59262136,177.88,177.85,2.4207]
[1729811567208,10.59292136,177.87,177.85,2.4207]
[1729811569613,2.8121,177.89,177.85,2.4207]
[1729811570003,7.78052136,177.9,177.85,5.2332]
[1729811570416,2.812,177.89,177.85,5.2332]
[1729811572309,2.8114,177.93,177.89,2.8119]
[1729811572515,2.8114,177.93,177.9,7.78052136]
[1729811573321,2.8115,177.92,177.9,7.78052136]
[1729811576614,224.50795115,178.01,177.91,7.78052136]
[1729811576916,4.14,178.0,177.93,7.78052136]
[1729811577115,171.54847251,178.01,177.96,7.78052136]
[1729811577416,7.78052136,177.98,177.91,14.73212136]
[1729811577614,7.78052136,177.96,177.91,14.73212136]
[1729811578316,2.811,177.95,177.91,14.73212136]
[1729811579517,7.78052136,177.96,177.91,11.92052136]
[1729811579712,167.90795115,178.01,177.91,4.14]
[1729811580024,7.78052136,177.97,177.91,11.92052136]
[1729811581420,2.8112,177.94,177.91,14.73212136]
[1729811582515,7.78052136,177.99,177.93,10.59182136]
[1729811582918,2.8109,177.96,177.93,7.78052136]
[1729811583231,171.54847251,178.01,177.95,7.78052136]
[1729811583520,2.8103,178.0,177.96,7.78052136]
[1729811583721,7.78052136,177.99,177.93,2.5322]
[1729811583923,2.8109,177.96,177.93,2.5322]
[1729811584126,7.78052136,177.96,177.9,11.92052136]
[1729811584816,2.811,177.95,177.91,2.8115]
[1729811585227,2.811,177.95,177.9,11.92052136]
[1729811585417,2.811,177.95,177.91,2.8116]
[1729811585622,2.811,177.95,177.91,10.59212136]
[1729811586423,2.8114,177.93,177.9,14.73232136]
[1729811586623,7.78052136,177.95,177.9,4.14]
[1729811586924,7.78052136,177.93,177.9,4.14]
[1729811587122,2.8115,177.92,177.89,7.78052136]
[1729811589134,2.8119,177.9,177.86,2.8123]
[1729811589327,2.8119,177.9,177.86,10.59282136]
[1729811589516,7.78052136,177.91,177.86,10.59282136]
[1729811590228,2.812,177.89,177.86,10.59282136]
[1729811591927,2.8118,177.9,177.86,10.59282136]
[1729811592129,7.78052136,177.9,177.85,2.5322]
[1729811592819,7.78052136,177.9,177.85,13.12512136]
[1729811593128,2.812,177.89,177.85,13.12512136]
[1729811593326,7.78052136,177.9,177.85,10.31272136]
[1729811593525,7.78052136,177.88,177.83,9.00762136]
[1729811593732,7.78052136,177.88,177.83,7.78052136]
[1729811594230,7.78052136,177.88,177.8,4.14]
[1729811594624,2.8126,177.85,177.81,2.8131]
[1729811594826,7.78052136,177.85,177.8,7.78052136]
[1729811595230,7.78052136,177.84,177.79,1.227]
[1729811595432,7.78052136,177.84,177.78,11.92052136]
[1729811595830,7.78052136,177.84,177.79,2.8134]
[1729811596521,2.8129,177.83,177.8,2.8133]
[1729811598932,2.8131,177.82,177.79,2.8135]
[1729811599136,7.78052136,177.84,177.78,7.78052136]
[1729811599532,7.78052136,177.82,177.76,10.18792136]
[1729811600224,2.8132,177.81,177.78,2.8137]
[1729811600827,6.9532,177.82,177.78,2.8137]
[1729811601032,11.92052136,177.82,177.78,2.8137]
[1729811601526,11.92052136,177.82,177.76,10.18792136]
[1729811601721,14.73362136,177.82,177.76,10.18792136]
[1729811602127,14.73362136,177.82,177.78,2.8136]
[1729811602331,6.9531,177.82,177.78,10.59412136]
[1729811603225,6.9531,177.82,177.78,2.8136]
[1729811604132,2.8142,177.75,177.69,2.815]
[1729811604338,2.8142,177.75,177.61,2.76240661]
[1729811604339,2.8142,177.75,177.71,7.78052136]
[1729811605326,4.14,177.77,177.67,3.6576]
[1729811605532,2.8143,177.74,177.7,7.78052136]
[1729811606126,169.51799372,177.87,177.73,7.78052136]
[1729811606328,7.78052136,177.8,177.73,7.78052136]
[1729811606537,11.92052136,177.8,177.73,7.78052136]
[1729811606737,2.8137,177.78,177.74,7.78052136]
[1729811608038,2.8136,177.79,177.75,2.8141]
[1729811610434,7.78052136,177.82,177.77,7.78052136]
[1729811610640,2.8134,177.8,177.77,7.78052136]
[1729811613537,2.8135,177.79,177.77,7.78052136]
[1729811613743,4.14,177.81,177.76,7.78052136]
[1729811614237,11.92052136,177.81,177.76,7.78052136]
[1729811614639,11.92052136,177.81,177.75,1.1775]
[1729811615242,2.8137,177.78,177.75,1.1775]
[1729811618849,2.8137,177.78,177.75,3.9917]
[1729811621445,2.8137,177.78,177.75,11.77222136]
[1729811632853,2.8137,177.78,177.75,3.9917]
[1729811634260,10.59412136,177.79,177.77,2.8138]
[1729811634453,8.40861392,177.89,177.75,1.1775]
[1729811634454,8.40861392,177.89,177.75,8.95802136]
[1729811634654,7.78052136,177.81,177.75,8.95802136]
[1729811635460,10.59382136,177.81,177.78,2.8136]
[1729811641854,10.59392136,177.8,177.77,2.8138]
[1729811643960,7.78052136,177.8,177.75,1.1775]